[Event "Titled Tuesday Blitz April 4 Late 2023"]
[White "Wadsworth, Matthew J"]
[Black "lluiss"]
[WhiteFideId "415804"]
[WhiteElo "2330"]
[BlackElo "2252"]
[Result "1-0"]
[Round "01"]
[TimeControl "180+2"]
[Date "2023.04.04"]
[WhiteClock "0:01:06"]
[BlackClock "0:00:15"]

1. Nc3 {[%clk 0:02:54]}  d5 {[%clk 0:02:58]} 2. e4 {[%clk 0:02:54]}  d4 {[%clk 0:02:57]} 3. Nce2 {[%clk 0:02:52]}  c5 {[%clk 0:02:55]} 4. Ng3 {[%clk 0:02:49]}  e6 {[%clk 0:02:43]} 5. Bb5+ {[%clk 0:02:45]}  Bd7 {[%clk 0:02:39]} 6. Bxd7+ {[%clk 0:02:44]}  Qxd7 {[%clk 0:02:37]} 7. d3 {[%clk 0:02:43]}  Nc6 {[%clk 0:02:35]} 8. f4 {[%clk 0:02:41]}  e5 {[%clk 0:02:22]} 9. f5 {[%clk 0:02:39]}  g6 {[%clk 0:02:16]} 10. Nf3 {[%clk 0:02:32]}  Bh6 {[%clk 0:02:14]} 11. O-O {[%clk 0:02:24]}  Bxc1 {[%clk 0:02:13]} 12. Qxc1 {[%clk 0:02:24]}  Nge7 {[%clk 0:01:58]} 13. Qh6 {[%clk 0:01:58]}  gxf5 {[%clk 0:01:45]} 14. exf5 {[%clk 0:01:56]}  O-O-O {[%clk 0:01:40]} 15. Rae1 {[%clk 0:01:46]}  f6 {[%clk 0:01:23]} 16. Qxf6 {[%clk 0:01:45]}  Rhf8 {[%clk 0:01:19]} 17. Qe6 {[%clk 0:01:44]}  Qxe6 {[%clk 0:01:18]} 18. fxe6 {[%clk 0:01:44]}  Ng6 {[%clk 0:01:13]} 19. Ne4 {[%clk 0:01:32]}  b6 {[%clk 0:01:07]} 20. Nfg5 {[%clk 0:01:32]}  Rxf1+ {[%clk 0:01:05]} 21. Rxf1 {[%clk 0:01:31]}  Nf4 {[%clk 0:01:00]} 22. g3 {[%clk 0:01:31]}  Ng6 {[%clk 0:00:39]} 23. Nxh7 {[%clk 0:01:16]}  Rh8 {[%clk 0:00:27]} 24. Rf6 {[%clk 0:01:08]}  Rxh7 {[%clk 0:00:25]} 25. Rxg6 {[%clk 0:01:09]}  Kc7 {[%clk 0:00:20]} 26. a3 {[%clk 0:01:06]}  Re7 {[%clk 0:00:19]} 27. h4 {[%clk 0:01:06]}  Nd8 {[%clk 0:00:19]} 28. Ng5 {[%clk 0:01:06]}  Kd6 {[%clk 0:00:15]} 29. h5 {[%clk 0:01:06]}  Nxe6 {[%clk 0:00:15]} 30. h6 {[%clk 0:01:06]} 1-0


[Site "https://www.chess.com"]

[Event "Titled Tuesday Blitz April 4 Late 2023"]
[White "Mirimanian, Hayk"]
[Black "feuervogel1000000"]
[WhiteFideId "4700180"]
[WhiteElo "2280"]
[BlackElo "2243"]
[Result "0-1"]
[Round "01"]
[TimeControl "180+2"]
[Date "2023.04.04"]
[WhiteClock "0:00:01"]
[BlackClock "0:01:33"]

1. d4 {[%clk 0:02:56]}  Nf6 {[%clk 0:02:59]} 2. Nf3 {[%clk 0:02:55]}  e6 {[%clk 0:02:59]} 3. c4 {[%clk 0:02:49]}  d5 {[%clk 0:02:58]} 4. Nc3 {[%clk 0:02:48]}  Be7 {[%clk 0:02:58]} 5. Bg5 {[%clk 0:02:44]}  O-O {[%clk 0:02:57]} 6. e3 {[%clk 0:02:42]}  b6 {[%clk 0:02:57]} 7. cxd5 {[%clk 0:02:41]}  exd5 {[%clk 0:02:58]} 8. Bd3 {[%clk 0:02:36]}  Bb7 {[%clk 0:02:57]} 9. O-O {[%clk 0:02:35]}  Nbd7 {[%clk 0:02:57]} 10. Rc1 {[%clk 0:02:33]}  c5 {[%clk 0:02:55]} 11. Bb1 {[%clk 0:02:31]}  h6 {[%clk 0:02:53]} 12. Bh4 {[%clk 0:02:24]}  c4 {[%clk 0:02:48]} 13. Qc2 {[%clk 0:02:19]}  Re8 {[%clk 0:02:45]} 14. Ne5 {[%clk 0:02:05]}  Nf8 {[%clk 0:02:43]} 15. Qf5 {[%clk 0:01:51]}  Bc8 {[%clk 0:02:31]} 16. Qf3 {[%clk 0:01:49]}  Bb7 {[%clk 0:02:13]} 17. Rfd1 {[%clk 0:01:23]}  a6 {[%clk 0:02:04]} 18. Ne2 {[%clk 0:01:19]}  b5 {[%clk 0:02:03]} 19. g4 {[%clk 0:01:15]}  Ne4 {[%clk 0:02:01]} 20. Bxe7 {[%clk 0:01:14]}  Qxe7 {[%clk 0:02:00]} 21. Qg2 {[%clk 0:01:13]}  f6 {[%clk 0:01:59]} 22. Ng6 {[%clk 0:01:13]}  Nxg6 {[%clk 0:01:59]} 23. f3 {[%clk 0:01:10]}  Nh4 {[%clk 0:01:58]} 24. Qh3 {[%clk 0:01:08]}  Ng5 {[%clk 0:01:58]} 25. Qg3 {[%clk 0:00:12]}  Qxe3+ {[%clk 0:01:56]} 26. Kh1 {[%clk 0:00:05]}  Qxe2 {[%clk 0:01:56]} 27. Rf1 {[%clk 0:00:04]}  Ngxf3 {[%clk 0:01:40]} 28. Rf2 {[%clk 0:00:03]}  Qe1+ {[%clk 0:01:37]} 29. Rf1 {[%clk 0:00:01]}  Qd2 {[%clk 0:01:33]} 0-1


[Site "https://www.chess.com"]

[Event "Titled Tuesday Blitz April 4 Late 2023"]
[White "Georg, Heinz"]
[Black "Plotnikov, Pavel"]
[WhiteFideId "4607295"]
[BlackFideId "4170342"]
[WhiteElo "2241"]
[BlackElo "2298"]
[Result "0-1"]
[Round "01"]
[TimeControl "180+2"]
[Date "2023.04.04"]
[WhiteClock "0:02:12"]
[BlackClock "0:02:36"]

1. e4 {[%clk 0:02:57]}  e6 {[%clk 0:02:59]} 2. c4 {[%clk 0:02:56]}  d5 {[%clk 0:02:59]} 3. cxd5 {[%clk 0:02:57]}  exd5 {[%clk 0:03:00]} 4. exd5 {[%clk 0:02:57]}  Nf6 {[%clk 0:03:01]} 5. Nc3 {[%clk 0:02:56]}  Be7 {[%clk 0:02:58]} 6. Bb5+ {[%clk 0:02:54]}  Nbd7 {[%clk 0:02:57]} 7. Nf3 {[%clk 0:02:53]}  O-O {[%clk 0:02:57]} 8. O-O {[%clk 0:02:53]}  a6 {[%clk 0:02:58]} 9. Ba4 {[%clk 0:02:48]}  b5 {[%clk 0:02:57]} 10. Bb3 {[%clk 0:02:48]}  Bb7 {[%clk 0:02:57]} 11. d4 {[%clk 0:02:47]}  Nb6 {[%clk 0:02:57]} 12. d6 {[%clk 0:02:42]}  Qxd6 {[%clk 0:02:52]} 13. Re1 {[%clk 0:02:22]}  b4 {[%clk 0:02:46]} 14. Na4 {[%clk 0:02:17]}  Nxa4 {[%clk 0:02:43]} 15. Bxa4 {[%clk 0:02:17]}  Nd5 {[%clk 0:02:43]} 16. Ne5 {[%clk 0:02:13]}  Rfd8 {[%clk 0:02:37]} 17. Nc6 {[%clk 0:02:12]}  Bxc6 {[%clk 0:02:35]} 18. Bxc6 {[%clk 0:02:12]}  Qxc6 {[%clk 0:02:36]} 0-1


[Site "https://www.chess.com"]

[Event "Titled Tuesday Blitz April 4 Late 2023"]
[White "Osmonbekov, Talaibek"]
[Black "Jocev, Milan"]
[WhiteFideId "2017253"]
[BlackFideId "900680"]
[WhiteElo "2135"]
[BlackElo "2304"]
[Result "0-1"]
[Round "01"]
[TimeControl "180+2"]
[Date "2023.04.04"]
[WhiteClock "0:00:01"]
[BlackClock "0:00:14"]

1. d4 {[%clk 0:02:58]}  Nf6 {[%clk 0:02:58]} 2. Bf4 {[%clk 0:02:58]}  d5 {[%clk 0:02:58]} 3. Nc3 {[%clk 0:02:57]}  Bf5 {[%clk 0:02:55]} 4. e3 {[%clk 0:02:56]}  e6 {[%clk 0:02:54]} 5. f3 {[%clk 0:02:57]}  Bd6 {[%clk 0:02:49]} 6. Nge2 {[%clk 0:02:50]}  Bg6 {[%clk 0:02:44]} 7. g4 {[%clk 0:02:48]}  h6 {[%clk 0:02:29]} 8. h4 {[%clk 0:02:46]}  Nc6 {[%clk 0:02:23]} 9. h5 {[%clk 0:02:26]}  Bh7 {[%clk 0:02:23]} 10. Ng3 {[%clk 0:02:24]}  e5 {[%clk 0:02:09]} 11. dxe5 {[%clk 0:02:16]}  Nxe5 {[%clk 0:02:09]} 12. Be2 {[%clk 0:01:46]}  c6 {[%clk 0:02:06]} 13. Qd2 {[%clk 0:01:45]}  Qe7 {[%clk 0:02:04]} 14. O-O-O {[%clk 0:01:35]}  O-O-O {[%clk 0:02:03]} 15. Nf5 {[%clk 0:01:31]}  Bxf5 {[%clk 0:02:02]} 16. gxf5 {[%clk 0:01:32]}  Nc4 {[%clk 0:01:31]} 17. Bxd6 {[%clk 0:01:10]}  Nxd6 {[%clk 0:01:31]} 18. Bd3 {[%clk 0:00:59]}  Rhe8 {[%clk 0:01:27]} 19. Rde1 {[%clk 0:00:54]}  Qe5 {[%clk 0:01:23]} 20. f4 {[%clk 0:00:41]}  Qe7 {[%clk 0:01:23]} 21. Qg2 {[%clk 0:00:42]}  Nde4 {[%clk 0:01:15]} 22. Bxe4 {[%clk 0:00:38]}  dxe4 {[%clk 0:01:13]} 23. Qxg7 {[%clk 0:00:35]}  Rg8 {[%clk 0:01:11]} 24. Qxh6 {[%clk 0:00:35]}  Ng4 {[%clk 0:01:11]} 25. Qh7 {[%clk 0:00:27]}  Nf6 {[%clk 0:01:10]} 26. Qh6 {[%clk 0:00:26]}  Rh8 {[%clk 0:00:37]} 27. Qg5 {[%clk 0:00:25]}  Rdg8 {[%clk 0:00:38]} 28. Qh4 {[%clk 0:00:25]}  Rxh5 {[%clk 0:00:36]} 29. Qf2 {[%clk 0:00:21]}  Rxf5 {[%clk 0:00:35]} 30. Rd1 {[%clk 0:00:17]}  Rc5 {[%clk 0:00:28]} 31. Rd4 {[%clk 0:00:16]}  Rxc3 {[%clk 0:00:27]} 32. bxc3 {[%clk 0:00:15]}  Qa3+ {[%clk 0:00:27]} 33. Kd2 {[%clk 0:00:16]}  Nd5 {[%clk 0:00:27]} 34. Rxd5 {[%clk 0:00:12]}  cxd5 {[%clk 0:00:28]} 35. f5 {[%clk 0:00:11]}  Qd6 {[%clk 0:00:21]} 36. Rh7 {[%clk 0:00:05]}  Rf8 {[%clk 0:00:12]} 37. Qf4 {[%clk 0:00:03]}  Qxf4 {[%clk 0:00:12]} 38. exf4 {[%clk 0:00:03]}  Kd8 {[%clk 0:00:13]} 39. Ke3 {[%clk 0:00:04]}  Ke7 {[%clk 0:00:13]} 40. Kd4 {[%clk 0:00:03]}  Kf6 {[%clk 0:00:13]} 41. Rh5 {[%clk 0:00:03]}  Rd8 {[%clk 0:00:13]} 42. a4 {[%clk 0:00:02]}  Re8 {[%clk 0:00:13]} 43. Kxd5 {[%clk 0:00:01]}  e3 {[%clk 0:00:13]} 44. Rh1 {[%clk 0:00:01]}  e2 {[%clk 0:00:13]} 45. Re1 {[%clk 0:00:02]}  Kxf5 {[%clk 0:00:13]} 46. Kd4 {[%clk 0:00:01]}  Kxf4 {[%clk 0:00:14]} 0-1


[Site "https://www.chess.com"]

[Event "Titled Tuesday Blitz April 4 Late 2023"]
[White "ritanovikova"]
[Black "Ambartsumova, Karina"]
[BlackFideId "4166299"]
[WhiteElo "2219"]
[BlackElo "2240"]
[Result "0-1"]
[Round "01"]
[TimeControl "180+2"]
[Date "2023.04.04"]
[WhiteClock "0:00:04"]
[BlackClock "0:00:37"]

1. e4 {[%clk 0:03:00]}  c5 {[%clk 0:03:00]} 2. Nc3 {[%clk 0:03:00]}  Nc6 {[%clk 0:02:59]} 3. d3 {[%clk 0:02:58]}  g6 {[%clk 0:03:00]} 4. Be3 {[%clk 0:02:58]}  d6 {[%clk 0:03:00]} 5. Qd2 {[%clk 0:02:58]}  Bg7 {[%clk 0:03:00]} 6. g3 {[%clk 0:02:58]}  e5 {[%clk 0:02:58]} 7. Bg2 {[%clk 0:02:57]}  Nge7 {[%clk 0:02:53]} 8. Bh6 {[%clk 0:02:55]}  Bxh6 {[%clk 0:02:53]} 9. Qxh6 {[%clk 0:02:56]}  Nd4 {[%clk 0:02:53]} 10. Qd2 {[%clk 0:02:55]}  Be6 {[%clk 0:02:46]} 11. Nd1 {[%clk 0:02:54]}  Qd7 {[%clk 0:02:44]} 12. c3 {[%clk 0:02:51]}  Ndc6 {[%clk 0:02:44]} 13. f4 {[%clk 0:02:47]}  O-O-O {[%clk 0:02:36]} 14. Nf3 {[%clk 0:02:41]}  f6 {[%clk 0:02:04]} 15. Ne3 {[%clk 0:02:34]}  exf4 {[%clk 0:02:01]} 16. gxf4 {[%clk 0:02:33]}  d5 {[%clk 0:02:01]} 17. c4 {[%clk 0:01:28]}  dxe4 {[%clk 0:02:00]} 18. dxe4 {[%clk 0:01:28]}  Qc7 {[%clk 0:02:01]} 19. Nd5 {[%clk 0:01:24]}  Bxd5 {[%clk 0:01:41]} 20. exd5 {[%clk 0:01:08]}  Nf5 {[%clk 0:01:40]} 21. O-O-O {[%clk 0:01:06]}  Kb8 {[%clk 0:01:32]} 22. Kb1 {[%clk 0:01:05]}  Ncd4 {[%clk 0:01:28]} 23. Nxd4 {[%clk 0:00:53]}  Nxd4 {[%clk 0:01:26]} 24. Rhe1 {[%clk 0:00:49]}  Rhe8 {[%clk 0:01:22]} 25. b3 {[%clk 0:00:30]}  Qd6 {[%clk 0:01:19]} 26. Kb2 {[%clk 0:00:28]}  f5 {[%clk 0:01:14]} 27. Rxe8 {[%clk 0:00:21]}  Rxe8 {[%clk 0:01:15]} 28. Re1 {[%clk 0:00:22]}  Rxe1 {[%clk 0:00:58]} 29. Qxe1 {[%clk 0:00:23]}  Qxf4 {[%clk 0:00:51]} 30. Qe8+ {[%clk 0:00:22]}  Kc7 {[%clk 0:00:51]} 31. Qe7+ {[%clk 0:00:22]}  Kb6 {[%clk 0:00:49]} 32. Qf6+ {[%clk 0:00:20]}  Ka5 {[%clk 0:00:45]} 33. b4+ {[%clk 0:00:19]}  cxb4 {[%clk 0:00:38]} 34. Qg7 {[%clk 0:00:07]}  Qd2+ {[%clk 0:00:38]} 35. Ka1 {[%clk 0:00:04]}  Qc1# {[%clk 0:00:37]} 0-1


[Site "https://www.chess.com"]

[Event "Titled Tuesday Blitz April 4 Late 2023"]
[White "cryptoguru02"]
[Black "MClarke95"]
[WhiteElo "2588"]
[BlackElo "2187"]
[Result "1-0"]
[Round "01"]
[TimeControl "180+2"]
[Date "2023.04.04"]
[WhiteClock "0:00:15"]
[BlackClock "0:00:01"]

1. d4 {[%clk 0:03:00]}  Nf6 {[%clk 0:02:59]} 2. c4 {[%clk 0:02:59]}  e6 {[%clk 0:02:59]} 3. Nc3 {[%clk 0:02:58]}  d5 {[%clk 0:02:58]} 4. Nf3 {[%clk 0:02:58]}  Be7 {[%clk 0:02:57]} 5. Bf4 {[%clk 0:02:56]}  O-O {[%clk 0:02:54]} 6. e3 {[%clk 0:02:56]}  c6 {[%clk 0:02:45]} 7. c5 {[%clk 0:02:53]}  Nh5 {[%clk 0:02:44]} 8. Bd3 {[%clk 0:02:49]}  Nd7 {[%clk 0:02:23]} 9. O-O {[%clk 0:02:44]}  Nxf4 {[%clk 0:02:13]} 10. exf4 {[%clk 0:02:45]}  b6 {[%clk 0:02:12]} 11. b4 {[%clk 0:02:44]}  a5 {[%clk 0:02:10]} 12. a3 {[%clk 0:02:44]}  Qc7 {[%clk 0:02:08]} 13. g3 {[%clk 0:02:43]}  Ba6 {[%clk 0:02:06]} 14. Bxa6 {[%clk 0:02:43]}  Rxa6 {[%clk 0:02:06]} 15. Qe2 {[%clk 0:02:44]}  Raa8 {[%clk 0:02:02]} 16. f5 {[%clk 0:02:39]}  e5 {[%clk 0:01:51]} 17. Nxe5 {[%clk 0:02:10]}  Nxe5 {[%clk 0:01:50]} 18. dxe5 {[%clk 0:02:11]}  axb4 {[%clk 0:01:36]} 19. axb4 {[%clk 0:02:03]}  bxc5 {[%clk 0:01:36]} 20. bxc5 {[%clk 0:02:01]}  Bxc5 {[%clk 0:01:35]} 21. Kg2 {[%clk 0:01:55]}  Rxa1 {[%clk 0:01:30]} 22. Rxa1 {[%clk 0:01:55]}  Bd4 {[%clk 0:01:29]} 23. Rc1 {[%clk 0:01:37]}  Qxe5 {[%clk 0:01:23]} 24. Qxe5 {[%clk 0:01:37]}  Bxe5 {[%clk 0:01:23]} 25. Na4 {[%clk 0:01:37]}  Rc8 {[%clk 0:01:22]} 26. Nc5 {[%clk 0:01:34]}  Bd6 {[%clk 0:01:15]} 27. Nd7 {[%clk 0:01:30]}  d4 {[%clk 0:01:05]} 28. Kf3 {[%clk 0:01:23]}  Rc7 {[%clk 0:00:42]} 29. Nb6 {[%clk 0:01:10]}  Bb4 {[%clk 0:00:41]} 30. Nd5 {[%clk 0:01:01]}  Ba3 {[%clk 0:00:28]} 31. Nxc7 {[%clk 0:00:49]}  Bxc1 {[%clk 0:00:27]} 32. Ke4 {[%clk 0:00:48]}  c5 {[%clk 0:00:26]} 33. Kd3 {[%clk 0:00:43]}  Kf8 {[%clk 0:00:24]} 34. Nd5 {[%clk 0:00:42]}  Ba3 {[%clk 0:00:22]} 35. g4 {[%clk 0:00:39]}  Ke8 {[%clk 0:00:21]} 36. g5 {[%clk 0:00:39]}  Kd7 {[%clk 0:00:20]} 37. Nb6+ {[%clk 0:00:39]}  Kc6 {[%clk 0:00:20]} 38. Nc4 {[%clk 0:00:40]}  Bb4 {[%clk 0:00:19]} 39. f4 {[%clk 0:00:38]}  f6 {[%clk 0:00:13]} 40. h4 {[%clk 0:00:38]}  h6 {[%clk 0:00:12]} 41. h5 {[%clk 0:00:37]}  Bc3 {[%clk 0:00:11]} 42. Na3 {[%clk 0:00:30]}  Kd5 {[%clk 0:00:10]} 43. Nc4 {[%clk 0:00:30]}  Kc6 {[%clk 0:00:10]} 44. Na3 {[%clk 0:00:30]}  Bb2 {[%clk 0:00:10]} 45. Nc4 {[%clk 0:00:29]}  Bc1 {[%clk 0:00:10]} 46. Na5+ {[%clk 0:00:26]}  Kd5 {[%clk 0:00:09]} 47. Nc4 {[%clk 0:00:24]}  Bxf4 {[%clk 0:00:09]} 48. g6 {[%clk 0:00:24]}  Bg5 {[%clk 0:00:08]} 49. Nb6+ {[%clk 0:00:24]}  Ke5 {[%clk 0:00:07]} 50. Nd7+ {[%clk 0:00:24]}  Kd6 {[%clk 0:00:07]} 51. Nf8 {[%clk 0:00:20]}  Kd5 {[%clk 0:00:06]} 52. Ne6 {[%clk 0:00:21]}  c4+ {[%clk 0:00:05]} 53. Ke2 {[%clk 0:00:21]}  d3+ {[%clk 0:00:06]} 54. Kf3 {[%clk 0:00:21]}  c3 {[%clk 0:00:05]} 55. Nxg7 {[%clk 0:00:19]}  c2 {[%clk 0:00:05]} 56. Ne8 {[%clk 0:00:18]}  c1=Q {[%clk 0:00:05]} 57. g7 {[%clk 0:00:19]}  Qf1+ {[%clk 0:00:06]} 58. Kg3 {[%clk 0:00:19]}  Qg1+ {[%clk 0:00:03]} 59. Kf3 {[%clk 0:00:17]}  Bd2 {[%clk 0:00:01]} 60. g8=Q+ {[%clk 0:00:15]} 1-0


[Site "https://www.chess.com"]

[Event "Titled Tuesday Blitz April 4 Late 2023"]
[White "Kavutskiy, Konstantin"]
[Black "Barria Santos, Jose Guilherme"]
[WhiteFideId "2026384"]
[BlackFideId "1939300"]
[WhiteElo "2323"]
[BlackElo "2266"]
[Result "1-0"]
[Round "01"]
[TimeControl "180+2"]
[Date "2023.04.04"]
[WhiteClock "0:02:06"]
[BlackClock "0:00:50"]

1. d4 {[%clk 0:02:59]}  Nf6 {[%clk 0:02:59]} 2. Bg5 {[%clk 0:02:48]}  g6 {[%clk 0:02:56]} 3. Bxf6 {[%clk 0:02:46]}  exf6 {[%clk 0:02:56]} 4. c4 {[%clk 0:02:46]}  Bg7 {[%clk 0:02:55]} 5. Nc3 {[%clk 0:02:46]}  O-O {[%clk 0:02:56]} 6. g3 {[%clk 0:02:45]}  c6 {[%clk 0:02:54]} 7. Bg2 {[%clk 0:02:46]}  f5 {[%clk 0:02:51]} 8. e3 {[%clk 0:02:45]}  Na6 {[%clk 0:02:45]} 9. Nge2 {[%clk 0:02:45]}  Nc7 {[%clk 0:02:45]} 10. O-O {[%clk 0:02:42]}  d5 {[%clk 0:02:43]} 11. cxd5 {[%clk 0:02:40]}  cxd5 {[%clk 0:02:43]} 12. Qb3 {[%clk 0:02:38]}  Be6 {[%clk 0:02:39]} 13. Nf4 {[%clk 0:02:37]}  h5 {[%clk 0:02:09]} 14. Ncxd5 {[%clk 0:02:32]}  Rb8 {[%clk 0:02:02]} 15. Nxe6 {[%clk 0:02:27]}  Nxe6 {[%clk 0:01:53]} 16. Rac1 {[%clk 0:02:25]}  h4 {[%clk 0:01:51]} 17. Rc2 {[%clk 0:02:18]}  Qd7 {[%clk 0:01:42]} 18. Rfc1 {[%clk 0:02:11]}  hxg3 {[%clk 0:01:35]} 19. hxg3 {[%clk 0:02:11]}  Rfc8 {[%clk 0:00:49]} 20. Rxc8+ {[%clk 0:02:06]}  Rxc8 {[%clk 0:00:50]} 21. Rxc8+ {[%clk 0:02:06]} 1-0


[Site "https://www.chess.com"]

[Event "Titled Tuesday Blitz April 4 Late 2023"]
[White "TimGrutter03"]
[Black "Dylag, Emilia"]
[BlackFideId "21805172"]
[WhiteElo "2582"]
[BlackElo "1878"]
[Result "1-0"]
[Round "01"]
[TimeControl "180+2"]
[Date "2023.04.04"]
[WhiteClock "0:00:49"]
[BlackClock "0:00:01"]

1. e4 {[%clk 0:02:59]}  e5 {[%clk 0:02:57]} 2. Nf3 {[%clk 0:02:58]}  Nc6 {[%clk 0:02:56]} 3. Bc4 {[%clk 0:02:57]}  Nf6 {[%clk 0:02:54]} 4. d3 {[%clk 0:02:52]}  Be7 {[%clk 0:02:51]} 5. O-O {[%clk 0:02:52]}  O-O {[%clk 0:02:51]} 6. Re1 {[%clk 0:02:52]}  d6 {[%clk 0:02:41]} 7. a4 {[%clk 0:02:52]}  h6 {[%clk 0:02:37]} 8. h3 {[%clk 0:02:52]}  Re8 {[%clk 0:02:33]} 9. c3 {[%clk 0:02:51]}  Bf8 {[%clk 0:02:32]} 10. Qb3 {[%clk 0:02:48]}  Re7 {[%clk 0:02:24]} 11. a5 {[%clk 0:02:46]}  Be6 {[%clk 0:02:20]} 12. Bxe6 {[%clk 0:02:44]}  Rxe6 {[%clk 0:02:21]} 13. Qxb7 {[%clk 0:02:41]}  d5 {[%clk 0:02:18]} 14. exd5 {[%clk 0:02:31]}  Nxd5 {[%clk 0:02:19]} 15. Qb3 {[%clk 0:02:27]}  Rb8 {[%clk 0:02:18]} 16. Qc2 {[%clk 0:02:26]}  g6 {[%clk 0:01:55]} 17. a6 {[%clk 0:02:22]}  f5 {[%clk 0:01:54]} 18. Na3 {[%clk 0:02:18]}  Bg7 {[%clk 0:01:51]} 19. Nc4 {[%clk 0:02:15]}  Qe8 {[%clk 0:01:50]} 20. Ne3 {[%clk 0:02:10]}  Nf6 {[%clk 0:01:39]} 21. b4 {[%clk 0:01:56]}  e4 {[%clk 0:01:37]} 22. dxe4 {[%clk 0:01:54]}  Nxe4 {[%clk 0:01:27]} 23. Bb2 {[%clk 0:01:50]}  f4 {[%clk 0:00:19]} 24. Nd5 {[%clk 0:01:49]}  Ne5 {[%clk 0:00:11]} 25. Qxe4 {[%clk 0:01:42]}  Nxf3+ {[%clk 0:00:09]} 26. Qxf3 {[%clk 0:01:43]}  Rxe1+ {[%clk 0:00:09]} 27. Rxe1 {[%clk 0:01:43]}  Qxe1+ {[%clk 0:00:09]} 28. Kh2 {[%clk 0:01:43]}  Qe5 {[%clk 0:00:05]} 29. Bc1 {[%clk 0:01:35]}  Rd8 {[%clk 0:00:05]} 30. c4 {[%clk 0:01:35]}  g5 {[%clk 0:00:04]} 31. Bd2 {[%clk 0:01:25]}  c6 {[%clk 0:00:04]} 32. Bc3 {[%clk 0:01:25]}  Qe6 {[%clk 0:00:02]} 33. Bxg7 {[%clk 0:01:21]}  cxd5 {[%clk 0:00:03]} 34. Bb2 {[%clk 0:01:14]}  dxc4 {[%clk 0:00:03]} 35. Qc3 {[%clk 0:01:13]}  Rd7 {[%clk 0:00:01]} 36. Qh8+ {[%clk 0:01:12]}  Kf7 {[%clk 0:00:02]} 37. Bc3 {[%clk 0:00:56]}  f3 {[%clk 0:00:01]} 38. gxf3 {[%clk 0:00:54]}  Qg6 {[%clk 0:00:01]} 39. Qc8 {[%clk 0:00:50]}  Rd3 {[%clk 0:00:01]} 40. Qxc4+ {[%clk 0:00:49]} 1-0


[Site "https://www.chess.com"]

[Event "Titled Tuesday Blitz April 4 Late 2023"]
[White "Kornyukov, Alexey"]
[Black "Drori, Saar"]
[WhiteFideId "4150457"]
[BlackFideId "2812444"]
[WhiteElo "2352"]
[BlackElo "2322"]
[Result "0-1"]
[Round "01"]
[TimeControl "180+2"]
[Date "2023.04.04"]
[WhiteClock "0:00:01"]
[BlackClock "0:00:05"]

1. d4 {[%clk 0:02:59]}  Nf6 {[%clk 0:02:59]} 2. c4 {[%clk 0:02:59]}  c5 {[%clk 0:02:57]} 3. d5 {[%clk 0:02:59]}  e6 {[%clk 0:02:58]} 4. Nc3 {[%clk 0:02:59]}  exd5 {[%clk 0:02:59]} 5. cxd5 {[%clk 0:03:00]}  d6 {[%clk 0:02:59]} 6. e4 {[%clk 0:03:00]}  g6 {[%clk 0:03:00]} 7. f3 {[%clk 0:03:01]}  Bg7 {[%clk 0:03:00]} 8. Bg5 {[%clk 0:03:01]}  O-O {[%clk 0:03:00]} 9. Qd2 {[%clk 0:03:02]}  Re8 {[%clk 0:02:54]} 10. a4 {[%clk 0:03:01]}  Na6 {[%clk 0:02:50]} 11. Bc4 {[%clk 0:02:59]}  Nc7 {[%clk 0:02:40]} 12. Nge2 {[%clk 0:02:59]}  b6 {[%clk 0:02:33]} 13. O-O {[%clk 0:02:58]}  a6 {[%clk 0:02:23]} 14. Rfb1 {[%clk 0:02:38]}  Bd7 {[%clk 0:02:04]} 15. b4 {[%clk 0:02:37]}  cxb4 {[%clk 0:02:03]} 16. Rxb4 {[%clk 0:02:37]}  b5 {[%clk 0:01:30]} 17. axb5 {[%clk 0:02:32]}  axb5 {[%clk 0:01:31]} 18. Rxa8 {[%clk 0:02:32]}  Qxa8 {[%clk 0:01:32]} 19. Nxb5 {[%clk 0:02:26]}  Bxb5 {[%clk 0:00:45]} 20. Bxb5 {[%clk 0:02:24]}  Qa1+ {[%clk 0:00:45]} 21. Kf2 {[%clk 0:02:19]}  Nxb5 {[%clk 0:00:34]} 22. Rxb5 {[%clk 0:02:16]}  Nd7 {[%clk 0:00:27]} 23. Be3 {[%clk 0:02:01]}  Ne5 {[%clk 0:00:19]} 24. Bd4 {[%clk 0:01:07]}  Qa4 {[%clk 0:00:19]} 25. Rb1 {[%clk 0:00:49]}  Rc8 {[%clk 0:00:19]} 26. Kg1 {[%clk 0:00:31]}  h5 {[%clk 0:00:15]} 27. h3 {[%clk 0:00:14]}  Rc2 {[%clk 0:00:14]} 28. Qd1 {[%clk 0:00:07]}  Qc4 {[%clk 0:00:11]} 29. Bxe5 {[%clk 0:00:03]}  Bxe5 {[%clk 0:00:08]} 30. Kf1 {[%clk 0:00:02]}  Bf4 {[%clk 0:00:05]} 31. Ra1 {[%clk 0:00:01]}  Rd2 {[%clk 0:00:05]} 0-1


[Site "https://www.chess.com"]

[Event "Titled Tuesday Blitz April 4 Late 2023"]
[White "Di Berardino, Diego Rafael"]
[Black "Krasteva, Beloslava"]
[WhiteFideId "2105446"]
[BlackFideId "2922029"]
[WhiteElo "2432"]
[BlackElo "2187"]
[Result "1-0"]
[Round "01"]
[TimeControl "180+2"]
[Date "2023.04.04"]
[WhiteClock "0:00:09"]
[BlackClock "0:00:01"]

1. e4 {[%clk 0:02:56]}  d5 {[%clk 0:02:59]} 2. exd5 {[%clk 0:02:54]}  Qxd5 {[%clk 0:03:00]} 3. Nf3 {[%clk 0:02:52]}  Bg4 {[%clk 0:02:59]} 4. Be2 {[%clk 0:02:48]}  Nf6 {[%clk 0:02:55]} 5. Nc3 {[%clk 0:02:46]}  Qd8 {[%clk 0:02:54]} 6. d4 {[%clk 0:02:45]}  e6 {[%clk 0:02:52]} 7. O-O {[%clk 0:02:44]}  c6 {[%clk 0:02:45]} 8. Be3 {[%clk 0:02:39]}  Bb4 {[%clk 0:02:31]} 9. Ne5 {[%clk 0:02:30]}  Bxe2 {[%clk 0:02:29]} 10. Nxe2 {[%clk 0:02:28]}  O-O {[%clk 0:02:25]} 11. c3 {[%clk 0:02:27]}  Bd6 {[%clk 0:02:21]} 12. Qb3 {[%clk 0:02:17]}  Qc7 {[%clk 0:02:18]} 13. g3 {[%clk 0:01:58]}  Nbd7 {[%clk 0:02:15]} 14. Nc4 {[%clk 0:01:57]}  b5 {[%clk 0:01:29]} 15. Nxd6 {[%clk 0:01:54]}  Qxd6 {[%clk 0:01:30]} 16. a4 {[%clk 0:01:50]}  a6 {[%clk 0:01:28]} 17. Nf4 {[%clk 0:01:39]}  Nb6 {[%clk 0:01:23]} 18. axb5 {[%clk 0:01:28]}  axb5 {[%clk 0:01:21]} 19. Nd3 {[%clk 0:01:28]}  Nc4 {[%clk 0:01:15]} 20. Bf4 {[%clk 0:01:27]}  Qe7 {[%clk 0:01:08]} 21. Nb4 {[%clk 0:01:19]}  Nd5 {[%clk 0:00:53]} 22. Nxd5 {[%clk 0:00:59]}  exd5 {[%clk 0:00:36]} 23. Qc2 {[%clk 0:00:43]}  Ra7 {[%clk 0:00:29]} 24. Rxa7 {[%clk 0:00:39]}  Qxa7 {[%clk 0:00:28]} 25. Re1 {[%clk 0:00:40]}  Qa2 {[%clk 0:00:22]} 26. Re2 {[%clk 0:00:35]}  Qa4 {[%clk 0:00:15]} 27. b3 {[%clk 0:00:24]}  Qa1+ {[%clk 0:00:14]} 28. Kg2 {[%clk 0:00:24]}  Nb6 {[%clk 0:00:10]} 29. Bd6 {[%clk 0:00:22]}  Ra8 {[%clk 0:00:08]} 30. Qd3 {[%clk 0:00:17]}  h6 {[%clk 0:00:05]} 31. h4 {[%clk 0:00:17]}  Qc1 {[%clk 0:00:02]} 32. Bf4 {[%clk 0:00:16]}  Qa3 {[%clk 0:00:02]} 33. Qc2 {[%clk 0:00:11]}  Qa1 {[%clk 0:00:02]} 34. h5 {[%clk 0:00:11]}  Qa3 {[%clk 0:00:01]} 35. b4 {[%clk 0:00:09]} 1-0


[Site "https://www.chess.com"]